fUST/lending_fUST_20240501
["ID","MTS","AMOUNT","RATE_DAILY","PERIOD"]
[324990085,1714498248374,-540.41,0.00032602,2]
[324990086,1714498248384,-500.0,0.00032602,2]
[324990087,1714498248394,-500.0,0.00032602,2]
[324990088,1714498248403,-500.89891223,0.00032602,2]
[324990089,1714498248413,-500.0,0.00032602,2]
[324990090,1714498248422,-500.0,0.00032602,2]
[324990091,1714498248431,-500.0,0.00032602,2]
[324990092,1714498248441,-500.0,0.00032602,2]
[324990093,1714498248453,-500.0,0.00032602,2]
[324990094,1714498248462,-500.0,0.00032602,2]
[324990095,1714498248472,-537.4021463,0.00032602,2]
[324990096,1714498248481,-500.0,0.00032602,2]
[324990097,1714498248491,-500.0,0.00032602,2]
[324990098,1714498248500,-577.64,0.00032602,2]
[324990099,1714498248510,-500.0,0.00032602,2]
[324990100,1714498248519,-500.0,0.00032602,2]
[324990101,1714498248529,-573.36,0.00032602,2]
[324990102,1714498248543,-500.0,0.00032602,2]
[324990103,1714498248553,-500.0,0.00032602,2]
[324990104,1714498248562,-1313.81,0.00032602,2]
[324990105,1714498248572,-601.8,0.00032602,2]
[324990106,1714498248581,-500.0,0.00032602,2]
[324990107,1714498248591,-500.0,0.00032602,2]
[324990108,1714498248600,-545.05,0.00032602,2]
[324990109,1714498248609,-747.04,0.00032602,2]
[324990110,1714498248619,-790.15,0.00032602,2]
[324990111,1714498248628,-683.08,0.00032602,2]
[324990112,1714498248638,-500.0,0.00032602,2]
[324990113,1714498248648,-729.73,0.00032602,2]
[324990114,1714498248657,-500.0,0.00032602,2]
[324990115,1714498248666,-984.74,0.00032602,2]
[324990116,1714498248676,-500.0,0.00032602,2]
[324990117,1714498248685,-1003.19,0.00032602,2]
[324990118,1714498248695,-1202.87,0.00032602,2]
[324990119,1714498248704,-500.0,0.00032602,2]
[324990120,1714498248713,-3192.74,0.00032602,2]
[324990121,1714498248723,-500.0,0.00032602,2]
[324990122,1714498248732,-799.68,0.00032602,2]
[324990123,1714498248741,-833.17,0.00032602,2]
[324990124,1714498248751,-500.0,0.00032602,2]
[324990125,1714498248760,-528.42534051,0.00032602,2]
[324990126,1714498248769,-500.0,0.00032602,2]
[324990127,1714498248778,-1010.35,0.00032602,2]
[324990128,1714498248788,-500.0,0.00032602,2]
[324990129,1714498248797,-500.0,0.00032602,2]
[324990130,1714498248807,-500.0,0.00032602,2]
[324990131,1714498248816,-500.0,0.00032602,2]
[324990132,1714498248826,-784.63,0.00032602,2]
[324990133,1714498248835,-500.0,0.00032602,2]
[324990134,1714498248844,-537.51,0.00032602,2]
[324990135,1714498248854,-513.67,0.00032602,2]
[324990136,1714498248863,-500.0,0.00032602,2]
[324990137,1714498248873,-573.62,0.00032602,2]
[324990138,1714498248882,-542.16,0.00032602,2]
[324990139,1714498248891,-500.0,0.00032602,2]
[324990140,1714498248901,-796.51,0.00032602,2]
[324990141,1714498248910,-500.0,0.00032602,2]
[324990142,1714498248920,-500.0,0.00032602,2]
[324990143,1714498248929,-500.0,0.00032602,2]
[324990144,1714498248939,-500.0,0.00032602,2]
[324990145,1714498248951,-500.0,0.00032602,2]
[324990146,1714498248960,-577.23,0.00032602,2]
[324990147,1714498248969,-500.0,0.00032602,2]
[324990148,1714498248978,-500.0,0.00032602,2]
[324990149,1714498248989,-501.87159403,0.00032602,2]
[324990150,1714498248999,-500.0,0.00032602,2]
[324990151,1714498249008,-500.0,0.00032602,2]
[324990152,1714498249018,-500.0,0.00032602,2]
[324990153,1714498249028,-500.0,0.00032602,2]
[324990154,1714498249037,-500.0,0.00032602,2]
[324990155,1714498249046,-500.0,0.00032602,2]
[324990156,1714498249056,-3076.51,0.00032602,2]
[324990157,1714498249065,-500.0,0.00032602,2]
[324990158,1714498249075,-500.0,0.00032602,2]
[324990159,1714498249084,-703.44,0.00032602,2]
[324990160,1714498249093,-500.0,0.00032602,2]
[324990161,1714498249103,-500.0,0.00032602,2]
[324990162,1714498249111,-500.0,0.00032602,2]
[324990163,1714498249121,-500.0,0.00032602,2]
[324990164,1714498249135,-500.0,0.00032602,2]
[324990165,1714498249144,-568.32,0.00032602,2]
[324990166,1714498249153,-500.0,0.00032602,2]
[324990167,1714498249163,-500.0,0.00032602,2]
[324990168,1714498249175,-500.0,0.00032602,2]
[324990169,1714498249184,-500.0,0.00032602,2]
[324990170,1714498249196,-500.0,0.00032602,2]
[324990171,1714498249207,-500.0,0.00032602,2]
[324990172,1714498249216,-500.0,0.00032602,2]
[324990173,1714498249226,-500.0,0.00032602,2]
[324990174,1714498249236,-500.0,0.00032602,2]
[324990175,1714498249246,-630.73,0.00032602,2]
[324990176,1714498249255,-736.42,0.00032602,2]
[324990177,1714498249265,-500.0,0.00032602,2]
[324990178,1714498249276,-1738.83,0.00032602,2]
[324990179,1714498249286,-169.8,0.00032602,2]
[324990180,1714498249296,-500.0,0.00032602,2]
[324990181,1714498249306,-500.0,0.00032602,2]
[324990182,1714498249315,-500.0,0.00032602,2]
[324990183,1714498249325,-500.0,0.00032602,2]
[324990184,1714498249336,-500.0,0.00032602,2]
[324990185,1714498249346,-541.93212074,0.00032602,2]
[324990186,1714498249355,-936.02,0.00032602,2]
[324990187,1714498249365,-1726.72,0.00032602,2]
[324990188,1714498249375,-500.0,0.00032602,2]
[324990189,1714498249385,-500.0,0.00032602,2]
[324990190,1714498249395,-559.92,0.00032602,2]
[324990191,1714498249405,-500.0,0.00032602,2]
[324990192,1714498249414,-500.0,0.00032602,2]
[324990193,1714498249424,-787.16,0.00032602,2]
[324990194,1714498249433,-500.0,0.00032602,2]
[324990195,1714498249444,-500.0,0.00032602,2]
[324990196,1714498249458,-500.0,0.00032602,2]
[324990197,1714498249467,-186.580557,0.00032638,2]
[324990198,1714498249476,-1000.0,0.00032639,2]
[324990199,1714498249486,-518.512554,0.00032646,2]
[324990200,1714498249496,-151.0,0.00032646,2]
[324990201,1714498249505,-518.512554,0.00032646,2]
[324990202,1714498249515,-151.0,0.00032646,2]
[324990203,1714498249524,-151.0,0.00032646,2]
[324990204,1714498249534,-151.0,0.00032646,2]
[324990205,1714498249543,-151.0,0.00032646,2]
[324990206,1714498249553,-241.710744,0.00032646,2]
[324990207,1714498249563,-151.0,0.00032646,2]
[324990208,1714498249572,-241.710744,0.00032646,2]
[324990209,1714498249582,-151.0,0.00032646,2]
[324990210,1714498249591,-327.944415,0.00032646,2]
[324990211,1714498249601,-159.227089,0.00032646,2]
[324990212,1714498249610,-327.944415,0.00032646,2]
[324990213,1714498249619,-159.227089,0.00032646,2]
[324990214,1714498249629,-151.0,0.00032646,2]
[324990215,1714498249639,-555.68074581,0.00032647,2]
[324990216,1714498249648,-188.5,0.00032647,30]
[324990217,1714498249658,-2130.63789699,0.00032647,2]
[324990218,1714498249667,-2868.04223041,0.00032647,2]
[324990219,1714498249677,-1003.5114668,0.00032647,2]
[324990220,1714498249686,-11999.999999,0.00032647,30]
[324990221,1714498249698,-1006.0,0.00032647,10]
[324990222,1714498249707,-1006.0,0.00032647,10]
[324990223,1714498249716,-1006.0,0.00032647,10]
[324990224,1714498249726,-1097.686567,0.00032647,10]
[324990225,1714498249735,-153.40602022,0.00032647,2]
[324990226,1714498249744,-153.40602022,0.00032647,2]
[324990227,1714498249754,-153.40602022,0.00032647,2]
[324990228,1714498249763,-977.78497557,0.00032647,2]
[324990229,1714498249773,-1000.0,0.000327,10]
[324990230,1714498249782,-716.28,0.00032715,2]
[324990231,1714498249792,-1000.0,0.00032783,2]
[324990232,1714498249801,-716.28,0.00032875,2]
[324990233,1714498249810,-716.28,0.00032875,2]
[324990234,1714498249820,-716.28,0.00032875,2]
[324990235,1714498249829,-716.28,0.00032875,2]
[324990236,1714498249839,-716.49365753,0.00032875,2]
[324990237,1714498249848,-500.0,0.00032876,2]
[324990238,1714498249858,-500.0,0.00032876,2]
[324990239,1714498249868,-500.0,0.00032876,30]
[324990240,1714498250002,-500.0,0.00032876,2]
[324990241,1714498250012,-1291.95,0.00032876,2]
[324990242,1714498250023,-314.71469119,0.00032876,2]
[324990243,1714498250032,-500.0,0.00032876,2]
[324990244,1714498250041,-500.0,0.00032876,2]
[324990245,1714498250050,-179.21676421,0.00032876,2]
[324990246,1714498250060,-500.0,0.00032876,2]
[324990247,1714498250070,-300.0,0.00032876,2]
[324990248,1714498250079,-500.0,0.00032876,2]
[324990249,1714498250089,-563.72,0.00032876,2]
[324990250,1714498250098,-500.0,0.00032876,2]
[324990251,1714498250107,-500.0,0.00032876,2]
[324990252,1714498250118,-500.0,0.00032876,2]
[324990253,1714498250129,-343.0,0.00032876,2]
[324990254,1714498250138,-500.0,0.00032876,2]
[324990255,1714498250147,-500.0,0.00032876,2]
[324990256,1714498250158,-789.49,0.00032876,2]
[324990257,1714498250167,-500.0,0.00032876,2]
[324990258,1714498250176,-500.0,0.00032876,2]
[324990259,1714498250185,-500.0,0.00032876,2]
[324990260,1714498250197,-500.0,0.00032876,2]
[324990261,1714498250206,-500.0,0.00032876,2]
[324990262,1714498250216,-500.0,0.00032876,2]
[324990263,1714498250225,-151.0,0.00032876,2]
[324990264,1714498250235,-500.0,0.00032876,2]
[324990265,1714498250243,-500.0,0.00032876,2]
[324990266,1714498250254,-500.0,0.00032876,2]
[324990267,1714498250263,-500.0,0.00032876,2]
[324990268,1714498250272,-897.66,0.00032876,2]
[324990269,1714498250281,-151.0,0.00032876,2]
[324990270,1714498250291,-151.0,0.00032876,2]
[324990271,1714498250300,-747.59,0.00032876,2]
[324990272,1714498250309,-500.0,0.00032876,2]
[324990273,1714498250319,-263.0925182,0.00032876,2]
[324990274,1714498250328,-500.0,0.00032876,2]
[324990275,1714498250337,-500.0,0.00032876,2]
[324990276,1714498250346,-533.64,0.00032876,2]
[324990277,1714498250355,-500.0,0.00032876,2]
[324990278,1714498250364,-597.02,0.00032876,2]
[324990279,1714498250374,-869.95,0.00032876,2]
[324990280,1714498250383,-500.0,0.00032876,2]
[324990281,1714498250392,-500.0,0.00032876,2]
[324990282,1714498250401,-500.0,0.00032876,2]
[324990283,1714498250410,-151.0,0.00032876,2]
[324990284,1714498250419,-500.0,0.00032876,2]
[324990285,1714498250428,-500.0,0.00032876,2]
[324990286,1714498250437,-552.05,0.00032876,2]
[324990287,1714498250449,-500.0,0.00032876,2]
[324990288,1714498250458,-500.0,0.00032876,2]
[324990289,1714498250467,-500.0,0.00032876,2]
[324990290,1714498250476,-602.58,0.00032876,2]
[324990291,1714498250485,-826.15,0.00032876,2]
[324990292,1714498250495,-500.0,0.00032876,2]
[324990293,1714498250504,-500.0,0.00032876,2]
[324990294,1714498250513,-649.55,0.00032876,2]
[324990295,1714498250522,-151.0,0.00032876,2]
[324990296,1714498250532,-500.0,0.00032876,2]
[324990297,1714498250540,-500.0,0.00032876,2]
[324990298,1714498250550,-500.0,0.00032876,2]
[324990299,1714498250559,-500.0,0.00032876,2]
[324990300,1714498250569,-500.0,0.00032876,2]
[324990301,1714498250578,-500.0,0.00032876,2]
[324990302,1714498250587,-552.12,0.00032876,2]
[324990303,1714498250596,-527.49,0.00032876,2]
[324990304,1714498250605,-500.0,0.00032876,2]
[324990305,1714498250614,-500.0,0.00032876,2]
[324990306,1714498250623,-500.0,0.00032876,2]
[324990307,1714498250633,-516.51,0.00032876,2]
[324990308,1714498250642,-500.0,0.00032876,2]
[324990309,1714498250651,-500.0,0.00032876,2]
[324990310,1714498250660,-500.0,0.00032876,2]
[324990311,1714498250670,-500.0,0.00032876,2]
[324990312,1714498250680,-816.57,0.00032876,2]
[324990313,1714498250689,-500.0,0.00032876,2]
[324990314,1714498250701,-500.0,0.00032876,2]
[324990315,1714498250711,-151.0,0.00032876,2]
[324990316,1714498250720,-500.0,0.00032876,2]
[324990317,1714498250730,-752.14,0.00032876,2]
[324990318,1714498250740,-500.0,0.00032876,2]
[324990319,1714498250750,-500.0,0.00032876,2]
[324990320,1714498250759,-601.45,0.00032876,2]
[324990321,1714498250769,-500.0,0.00032876,2]
[324990322,1714498250778,-500.0,0.00032876,2]
[324990323,1714498250788,-500.0,0.00032876,2]
[324990324,1714498250797,-152.172222,0.00032876,2]
[324990325,1714498250806,-527.14,0.00032876,2]
[324990326,1714498250816,-500.0,0.00032876,2]
[324990327,1714498250825,-1001.48,0.00032876,2]
[324990328,1714498250834,-500.0,0.00032876,2]
[324990329,1714498250843,-500.0,0.00032876,2]
[324990330,1714498250852,-540.41,0.00032876,2]
[324990331,1714498250862,-500.0,0.00032876,2]
[324990332,1714498250871,-500.0,0.00032876,2]
[324990333,1714498250880,-500.0,0.00032876,2]
[324990334,1714498250890,-500.0,0.00032876,2]
[324990335,1714498250899,-382.86747238,0.00032876,2]
[324990336,1714498250909,-500.0,0.00032876,2]
[324990337,1714498250918,-151.0,0.00032876,2]
[324990338,1714498250928,-151.0,0.00032876,2]
[324990339,1714498250937,-500.0,0.00032876,2]
[324990340,1714498250955,-500.0,0.00032876,2]
[324990341,1714498250965,-500.0,0.00032876,2]
[324990342,1714498250975,-500.0,0.00032876,2]
[324990343,1714498250986,-577.64,0.00032876,2]
[324990344,1714498250995,-2302.505481,0.00032876,2]
[324990345,1714498251004,-500.0,0.00032876,2]
[324990346,1714498251014,-2302.505481,0.00032876,2]
[324990347,1714498251023,-893.100649,0.00032876,2]
[324990348,1714498251033,-500.0,0.00032876,2]
[324990349,1714498251042,-573.36,0.00032876,2]
[324990350,1714498251052,-500.0,0.00032876,2]
[324990351,1714498251062,-893.100649,0.00032876,2]
[324990352,1714498251071,-327.48749,0.00032876,2]
[324990353,1714498251080,-500.0,0.00032876,2]
[324990354,1714498251090,-1313.81,0.00032876,2]
[324990355,1714498251099,-327.48749,0.00032876,2]
[324990356,1714498251109,-151.0,0.00032876,2]
[324990357,1714498251119,-601.8,0.00032876,2]
[324990358,1714498251132,-500.0,0.00032876,2]
[324990359,1714498251141,-500.0,0.00032876,2]
[324990360,1714498251151,-545.05,0.00032876,2]
[324990361,1714498251160,-747.04,0.00032876,2]
[324990362,1714498251171,-790.15,0.00032876,2]
[324990363,1714498251181,-683.08,0.00032876,2]
[324990364,1714498251190,-500.0,0.00032876,2]
[324990365,1714498251199,-729.73,0.00032876,2]
[324990366,1714498251208,-500.0,0.00032876,2]
[324990367,1714498251218,-984.74,0.00032876,2]
[324990368,1714498251228,-505.58052656,0.00032876,2]
[324990369,1714498251237,-1003.19,0.00032876,2]
[324990370,1714498251246,-1202.87,0.00032876,2]
[324990371,1714498251255,-151.81257834,0.00032876,2]
[324990372,1714498251265,-3192.74,0.00032876,2]
[324990373,1714498251274,-500.0,0.00032876,2]
[324990374,1714498251284,-799.68,0.00032876,2]
[324990375,1714498251293,-833.17,0.00032876,2]
[324990376,1714498251303,-500.0,0.00032876,2]
[324990377,1714498251312,-500.0,0.00032876,2]
[324990378,1714498251322,-500.0,0.00032876,14]
[324990379,1714498251331,-1127.86,0.00032876,7]
[324990380,1714498251341,-1127.86,0.00032876,10]
[324990381,1714498251350,-1127.86,0.00032876,13]
[324990382,1714498251360,-1127.86,0.00032876,16]
[324990383,1714498251370,-1127.86,0.00032876,19]
[324990384,1714498251378,-1127.86,0.00032876,22]
[324990385,1714498251388,-1127.86,0.00032876,25]
[324990386,1714498251398,-1127.86,0.00032876,28]
[324990387,1714498251407,-1010.35,0.00032876,2]
[324990388,1714498251417,-1127.86,0.00032876,31]
[324990389,1714498251426,-1127.86,0.00032876,34]
[324990390,1714498251435,-1127.86,0.00032876,37]
[324990391,1714498251446,-1127.86,0.00032876,40]
[324990392,1714498251455,-1127.86,0.00032876,43]
[324990393,1714498251465,-1127.86,0.00032876,46]
[324990394,1714498251474,-1127.86,0.00032876,49]
[324990395,1714498251483,-1127.86,0.00032876,52]
[324990396,1714498251492,-1127.86,0.00032876,55]
[324990397,1714498251502,-1127.86,0.00032876,58]
[324990398,1714498251511,-500.0,0.00032876,2]
[324990399,1714498251520,-1127.86,0.00032876,61]
[324990400,1714498251529,-1127.86,0.00032876,64]
[324990401,1714498251539,-1127.86,0.00032876,64]
[324990402,1714498251548,-1127.86,0.00032876,64]
[324990403,1714498251557,-1127.86,0.00032876,64]
[324990404,1714498251566,-1128.04695924,0.00032876,64]
[324990405,1714498251577,-500.0,0.00032876,2]
[324990406,1714498251586,-500.0,0.00032876,2]
[324990407,1714498251595,-500.0,0.00032876,2]
[324990408,1714498251604,-784.63,0.00032876,2]
[324990409,1714498251614,-500.0,0.00032876,2]
[324990410,1714498251623,-537.51,0.00032876,2]
[324990411,1714498251633,-513.67,0.00032876,2]
[324990412,1714498251644,-500.0,0.00032876,2]
[324990413,1714498251653,-573.62,0.00032876,2]
[324990414,1714498251662,-542.16,0.00032876,2]
[324990415,1714498251671,-500.0,0.00032876,2]
[324990416,1714498251680,-796.51,0.00032876,2]
[324990417,1714498251689,-500.0,0.00032876,2]
[324990418,1714498251699,-500.0,0.00032876,2]
[324990419,1714498251708,-500.0,0.00032876,2]
[324990420,1714498251717,-500.0,0.00032876,2]
[324990421,1714498251727,-500.0,0.00032876,2]
[324990422,1714498251736,-577.23,0.00032876,2]
[324990423,1714498251746,-500.0,0.00032876,2]
[324990424,1714498251755,-500.0,0.00032876,2]
[324990425,1714498251763,-500.0,0.00032876,2]
[324990426,1714498251773,-231.814882,0.00032876,2]
[324990427,1714498251782,-500.0,0.00032876,2]
[324990428,1714498251791,-500.0,0.00032876,2]
[324990429,1714498251801,-151.697529,0.00032876,2]
[324990430,1714498251810,-231.814882,0.00032876,2]
[324990431,1714498251821,-500.0,0.00032876,2]
[324990432,1714498251830,-500.0,0.00032876,2]
[324990433,1714498251839,-500.0,0.00032876,2]
[324990434,1714498251848,-3076.51,0.00032876,2]
[324990435,1714498251857,-151.0,0.00032876,2]
[324990436,1714498251866,-500.0,0.00032876,2]
[324990437,1714498251875,-500.0,0.00032876,2]
[324990438,1714498251884,-703.44,0.00032876,2]
[324990439,1714498251892,-500.0,0.00032876,2]
[324990440,1714498251901,-1619.092304,0.00032876,2]
[324990441,1714498251911,-500.0,0.00032876,2]
[324990442,1714498251920,-1619.092304,0.00032876,2]
[324990443,1714498251929,-500.0,0.00032876,2]
[324990444,1714498251938,-271.94872323,0.00032876,2]
[324990445,1714498251948,-568.32,0.00032876,2]
[324990446,1714498251957,-500.0,0.00032876,2]
[324990447,1714498251966,-500.0,0.00032876,2]
[324990448,1714498251975,-500.0,0.00032876,2]
[324990449,1714498251984,-292.753568,0.00032876,2]
[324990450,1714498251993,-500.0,0.00032876,2]
[324990451,1714498252003,-292.753568,0.00032876,2]
[324990452,1714498252012,-500.0,0.00032876,2]
[324990453,1714498252022,-500.0,0.00032876,2]
[324990454,1714498252031,-500.0,0.00032876,2]
[324990455,1714498252041,-500.0,0.00032876,2]
[324990456,1714498252050,-500.0,0.00032876,2]
[324990457,1714498252059,-630.73,0.00032876,2]
[324990458,1714498252068,-736.42,0.00032876,2]
[324990459,1714498252077,-500.0,0.00032876,2]
[324990460,1714498252086,-1738.83,0.00032876,2]
[324990461,1714498252095,-500.0,0.00032876,2]
[324990462,1714498252104,-500.0,0.00032876,2]
[324990463,1714498252114,-500.0,0.00032876,2]
[324990464,1714498252128,-500.0,0.00032876,2]
[324990465,1714498252137,-500.0,0.00032876,2]
[324990466,1714498252147,-936.02,0.00032876,2]
[324990467,1714498252156,-1726.72,0.00032876,2]
[324990468,1714498252167,-500.0,0.00032876,2]
[324990469,1714498252177,-559.92,0.00032876,2]
[324990470,1714498252186,-500.0,0.00032876,2]
[324990471,1714498252195,-500.0,0.00032876,2]
[324990472,1714498252207,-787.16,0.00032876,2]
[324990473,1714498252217,-500.0,0.00032876,2]
[324990474,1714498252226,-500.0,0.00032876,2]
[324990475,1714498252235,-1000.0,0.0003291,2]
[324990476,1714498252245,-1000.0,0.00032943,2]
[324990477,1714498252254,-1000.0,0.00032949,2]
[324990478,1714498252263,-370.0,0.00033,2]
[324990479,1714498252273,-155.58236344,0.0003305,3]
[324990480,1714498252282,-308.90365849,0.00033081,6]
[324990481,1714498252291,-151.0,0.00033144,2]
[324990482,1714498252300,-189.051548,0.00033144,2]
[324990483,1714498252309,-2302.505481,0.00033144,2]
[324990484,1714498252319,-2302.505481,0.00033144,2]
[324990485,1714498252328,-893.100649,0.00033144,2]
[324990486,1714498252338,-893.100649,0.00033144,2]
[324990487,1714498252347,-327.48749,0.00033144,2]
[324990488,1714498252357,-327.48749,0.00033144,2]
[324990489,1714498252366,-518.512554,0.00033144,2]
[324990490,1714498252376,-151.0,0.00033144,2]
[324990491,1714498252385,-151.0,0.00033144,2]
[324990492,1714498252395,-518.512554,0.00033144,2]
[324990493,1714498252404,-151.0,0.00033144,2]
[324990494,1714498252415,-151.0,0.00033144,2]
[324990495,1714498252424,-151.0,0.00033144,2]
[324990496,1714498252434,-151.0,0.00033144,2]
[324990497,1714498252443,-241.710744,0.00033144,2]
[324990498,1714498252455,-151.0,0.00033144,2]
[324990499,1714498252464,-241.710744,0.00033144,2]
[324990500,1714498252474,-151.0,0.00033144,2]
[324990501,1714498252483,-327.944415,0.00033144,2]
[324990502,1714498252492,-159.227089,0.00033144,2]
[324990503,1714498252502,-327.944415,0.00033144,2]
[324990504,1714498252511,-159.227089,0.00033144,2]
[324990505,1714498252520,-151.0,0.00033144,2]
[324990506,1714498252530,-151.0,0.00033144,2]
[324990507,1714498252540,-5789.41,0.00033147,2]
[324990508,1714498252549,-5789.41,0.00033147,2]
[324990509,1714498252558,-5789.41,0.00033147,2]
[324990510,1714498252567,-5789.41,0.00033147,2]
[324990511,1714498252577,-5789.41,0.00033147,2]
[324990512,1714498252588,-5789.41,0.00033147,2]
[324990513,1714498252597,-5789.41,0.00033147,2]
[324990514,1714498252606,-5789.41,0.00033147,2]
[324990515,1714498252615,-5789.41,0.00033147,2]
[324990516,1714498252624,-5789.41,0.00033147,2]
[324990517,1714498252635,-151.0,0.00033149,2]
[324990518,1714498252644,-151.0,0.00033149,2]
[324990519,1714498252654,-500.0,0.0003315,7]
[324990520,1714498252663,-163.0,0.0003315,20]
[324990521,1714498252673,-500.0,0.0003315,7]
[324990522,1714498252682,-500.0,0.0003315,30]
[324990523,1714498252691,-500.0,0.0003315,7]
[324990524,1714498252705,-1291.95,0.0003315,7]
[324990525,1714498252714,-500.0,0.0003315,7]
[324990526,1714498252723,-500.0,0.0003315,7]
[324990527,1714498252732,-540.06781762,0.0003315,7]
[324990528,1714498252741,-300.0,0.0003315,7]
[324990529,1714498252750,-500.0,0.0003315,7]
[324990530,1714498252759,-563.72,0.0003315,7]
[324990531,1714498252767,-500.0,0.0003315,7]
[324990532,1714498252776,-500.0,0.0003315,7]
[324990533,1714498252786,-500.0,0.0003315,7]
[324990534,1714498252795,-500.0,0.0003315,7]
[324990535,1714498252804,-500.0,0.0003315,7]
[324990536,1714498252813,-789.49,0.0003315,7]
[324990537,1714498252822,-500.0,0.0003315,7]
[324990538,1714498252831,-500.0,0.0003315,7]
[324990539,1714498252841,-500.0,0.0003315,7]
[324990540,1714498252850,-500.0,0.0003315,7]
[324990541,1714498252859,-500.0,0.0003315,7]
[324990542,1714498252868,-500.0,0.0003315,7]
[324990543,1714498252878,-151.0,0.0003315,2]
[324990544,1714498252888,-500.0,0.0003315,7]
[324990545,1714498252897,-500.0,0.0003315,7]
[324990546,1714498252907,-500.0,0.0003315,7]
[324990547,1714498252916,-500.0,0.0003315,7]
[324990548,1714498252925,-897.66,0.0003315,7]
[324990549,1714498252935,-151.0,0.0003315,2]
[324990550,1714498252944,-151.0,0.0003315,2]
[324990551,1714498252958,-747.59,0.0003315,7]
[324990552,1714498252968,-500.0,0.0003315,7]
[324990553,1714498252978,-500.0,0.0003315,7]
[324990554,1714498252987,-500.0,0.0003315,7]
[324990555,1714498252996,-533.64,0.0003315,7]
[324990556,1714498253006,-500.0,0.0003315,7]
[324990557,1714498253015,-597.02,0.0003315,7]
[324990558,1714498253026,-869.95,0.0003315,7]
[324990559,1714498253036,-500.0,0.0003315,7]
[324990560,1714498253045,-500.0,0.0003315,7]
[324990561,1714498253054,-500.0,0.0003315,2]
[324990562,1714498253064,-151.0,0.0003315,2]
[324990563,1714498253073,-500.0,0.0003315,7]
[324990564,1714498253210,-500.0,0.0003315,7]
[324990565,1714498253220,-552.05,0.0003315,7]
[324990566,1714498253230,-500.0,0.0003315,7]
[324990567,1714498253239,-500.0,0.0003315,7]
[324990568,1714498253248,-500.0,0.0003315,7]
[324990569,1714498253257,-602.58,0.0003315,7]
[324990570,1714498253266,-826.15,0.0003315,7]
[324990571,1714498253276,-500.0,0.0003315,7]
[324990572,1714498253285,-500.0,0.0003315,7]
[324990573,1714498253295,-649.55,0.0003315,7]
[324990574,1714498253305,-500.0,0.0003315,7]
[324990575,1714498253314,-500.0,0.0003315,7]
[324990576,1714498253323,-500.0,0.0003315,7]
[324990577,1714498253332,-500.0,0.0003315,7]
[324990578,1714498253342,-500.0,0.0003315,7]
[324990579,1714498253351,-500.0,0.0003315,7]
[324990580,1714498253360,-552.12,0.0003315,7]
[324990581,1714498253369,-527.49,0.0003315,7]
[324990582,1714498253378,-500.0,0.0003315,7]
[324990583,1714498253388,-500.0,0.0003315,7]
[324990584,1714498253397,-500.0,0.0003315,7]